{"text_format":"3","workbook":"xlsx","n_sheets":1,"sheets":["Budžeta izdevumi"],"not_rendered":{"charts":2,"defined_names":3},"read":"whole","date_system":"1900"}

{"sheet":"Budžeta izdevumi","index":0,"n_rows":47,"n_cols":7,"rows_kept":47,"merged":[[0,1,0,4],[0,5,0,6],[16,1,16,6],[47,1,47,6]]}
[null,"Budžeta izdevumi",{"$nulls":3},"CONTOSO, 2013"]
[]
[]
[null," PERSONĀLA BUDŽETS"]
{"$rows_empty":7}
[null,"STATUSS","PERSONĀLS","BUDŽETS","FAKTISKI","STARPĪBA (summa)","STARPĪBA (%)"]
[null,{"$f":"IFERROR(tabula_personāla_izdevumi[[#This Row],[FAKTISKI]]/tabula_personāla_izdevumi[[#This Row],[BUDŽETS]],\"\")","v":{"v":1.13,"d":"$1.13"}},"Birojs",{"v":500,"d":"500.00 €"},{"v":565,"d":"565.00 €"},{"$f":"tabula_personāla_izdevumi[[#This Row],[BUDŽETS]]-tabula_personāla_izdevumi[[#This Row],[FAKTISKI]]","v":{"v":-65,"d":"-65.00 €"}},{"$f":"IFERROR(tabula_personāla_izdevumi[STARPĪBA (summa)]/tabula_personāla_izdevumi[BUDŽETS],\"\")","v":{"v":-0.13,"d":"-13%"}}]
[null,{"$f":"IFERROR(tabula_personāla_izdevumi[[#This Row],[FAKTISKI]]/tabula_personāla_izdevumi[[#This Row],[BUDŽETS]],\"\")","v":{"v":1.2,"d":"$1.20"}},"Veikals",{"v":125,"d":"125.00 €"},{"v":150,"d":"150.00 €"},{"$f":"tabula_personāla_izdevumi[[#This Row],[BUDŽETS]]-tabula_personāla_izdevumi[[#This Row],[FAKTISKI]]","v":{"v":-25,"d":"-25.00 €"}},{"$f":"IFERROR(tabula_personāla_izdevumi[STARPĪBA (summa)]/tabula_personāla_izdevumi[BUDŽETS],\"\")","v":{"v":-0.2,"d":"-20%"}}]
[null,{"$f":"IFERROR(tabula_personāla_izdevumi[[#This Row],[FAKTISKI]]/tabula_personāla_izdevumi[[#This Row],[BUDŽETS]],\"\")","v":{"v":1,"d":"$1.00"}},"Pārdevēji",{"v":100,"d":"100.00 €"},{"v":100,"d":"100.00 €"},{"$f":"tabula_personāla_izdevumi[[#This Row],[BUDŽETS]]-tabula_personāla_izdevumi[[#This Row],[FAKTISKI]]","v":{"v":0,"d":"0.00 €"}},{"$f":"IFERROR(tabula_personāla_izdevumi[STARPĪBA (summa)]/tabula_personāla_izdevumi[BUDŽETS],\"\")","v":{"v":0,"d":"0%"}}]
[null,{"$f":"IFERROR(tabula_personāla_izdevumi[[#This Row],[FAKTISKI]]/tabula_personāla_izdevumi[[#This Row],[BUDŽETS]],\"\")","v":{"v":0.9,"d":"$0.90"}},"Citi",{"v":100,"d":"100.00 €"},{"v":90,"d":"90.00 €"},{"$f":"tabula_personāla_izdevumi[[#This Row],[BUDŽETS]]-tabula_personāla_izdevumi[[#This Row],[FAKTISKI]]","v":{"v":10,"d":"10.00 €"}},{"$f":"IFERROR(tabula_personāla_izdevumi[STARPĪBA (summa)]/tabula_personāla_izdevumi[BUDŽETS],\"\")","v":{"v":0.1,"d":"10%"}}]
[]
[]
[null," EKSPLUATĀCIJAS BUDŽETS"]
{"$rows_empty":7}
[null,"STATUSS","EKSPLUATĀCIJA1","BUDŽETS","FAKTISKI","STARPĪBA (summa)","STARPĪBA (%)"]
[null,{"$f":"IFERROR(tabula_darbības_izdevumi[[#This Row],[FAKTISKI]]/tabula_darbības_izdevumi[[#This Row],[BUDŽETS]],\"\")","v":{"v":0.98,"d":"$0.98"}},"Reklāma",{"v":250,"d":"250.00 €"},{"v":245,"d":"245.00 €"},{"$f":"tabula_darbības_izdevumi[[#This Row],[BUDŽETS]]-tabula_darbības_izdevumi[[#This Row],[FAKTISKI]]","v":{"v":5,"d":"5.00 €"}},{"$f":"IFERROR(tabula_darbības_izdevumi[[#This Row],[STARPĪBA (summa)]]/tabula_darbības_izdevumi[[#This Row],[BUDŽETS]],\"\")","v":{"v":0.02,"d":"2%"}}]
[null,{"$f":"IFERROR(tabula_darbības_izdevumi[[#This Row],[FAKTISKI]]/tabula_darbības_izdevumi[[#This Row],[BUDŽETS]],\"\")","v":{"v":1.2,"d":"$1.20"}},"Parādi",{"v":125,"d":"125.00 €"},{"v":150,"d":"150.00 €"},{"$f":"tabula_darbības_izdevumi[[#This Row],[BUDŽETS]]-tabula_darbības_izdevumi[[#This Row],[FAKTISKI]]","v":{"v":-25,"d":"-25.00 €"}},{"$f":"IFERROR(tabula_darbības_izdevumi[[#This Row],[STARPĪBA (summa)]]/tabula_darbības_izdevumi[[#This Row],[BUDŽETS]],\"\")","v":{"v":-0.2,"d":"-20%"}}]
[null,{"$f":"IFERROR(tabula_darbības_izdevumi[[#This Row],[FAKTISKI]]/tabula_darbības_izdevumi[[#This Row],[BUDŽETS]],\"\")","v":{"v":1,"d":"$1.00"}},"Ieguvumi",{"v":100,"d":"100.00 €"},{"v":100,"d":"100.00 €"},{"$f":"tabula_darbības_izdevumi[[#This Row],[BUDŽETS]]-tabula_darbības_izdevumi[[#This Row],[FAKTISKI]]","v":{"v":0,"d":"0.00 €"}},{"$f":"IFERROR(tabula_darbības_izdevumi[[#This Row],[STARPĪBA (summa)]]/tabula_darbības_izdevumi[[#This Row],[BUDŽETS]],\"\")","v":{"v":0,"d":"0%"}}]
[null,{"$f":"IFERROR(tabula_darbības_izdevumi[[#This Row],[FAKTISKI]]/tabula_darbības_izdevumi[[#This Row],[BUDŽETS]],\"\")","v":{"v":0.9,"d":"$0.90"}},"Krājumi",{"v":100,"d":"100.00 €"},{"v":90,"d":"90.00 €"},{"$f":"tabula_darbības_izdevumi[[#This Row],[BUDŽETS]]-tabula_darbības_izdevumi[[#This Row],[FAKTISKI]]","v":{"v":10,"d":"10.00 €"}},{"$f":"IFERROR(tabula_darbības_izdevumi[[#This Row],[STARPĪBA (summa)]]/tabula_darbības_izdevumi[[#This Row],[BUDŽETS]],\"\")","v":{"v":0.1,"d":"10%"}}]
[null,{"$f":"IFERROR(tabula_darbības_izdevumi[[#This Row],[FAKTISKI]]/tabula_darbības_izdevumi[[#This Row],[BUDŽETS]],\"\")","v":""},"Pasta izdevumi",null,null,{"$f":"tabula_darbības_izdevumi[[#This Row],[BUDŽETS]]-tabula_darbības_izdevumi[[#This Row],[FAKTISKI]]","v":{"v":0,"d":"0.00 €"}},{"$f":"IFERROR(tabula_darbības_izdevumi[[#This Row],[STARPĪBA (summa)]]/tabula_darbības_izdevumi[[#This Row],[BUDŽETS]],\"\")","v":""}]
[null,{"$f":"IFERROR(tabula_darbības_izdevumi[[#This Row],[FAKTISKI]]/tabula_darbības_izdevumi[[#This Row],[BUDŽETS]],\"\")","v":""},"Īre vai hipotēka",null,null,{"$f":"tabula_darbības_izdevumi[[#This Row],[BUDŽETS]]-tabula_darbības_izdevumi[[#This Row],[FAKTISKI]]","v":{"v":0,"d":"0.00 €"}},{"$f":"IFERROR(tabula_darbības_izdevumi[[#This Row],[STARPĪBA (summa)]]/tabula_darbības_izdevumi[[#This Row],[BUDŽETS]],\"\")","v":""}]
[null,{"$f":"IFERROR(tabula_darbības_izdevumi[[#This Row],[FAKTISKI]]/tabula_darbības_izdevumi[[#This Row],[BUDŽETS]],\"\")","v":""},"Pārdošanas izmaksas",null,null,{"$f":"tabula_darbības_izdevumi[[#This Row],[BUDŽETS]]-tabula_darbības_izdevumi[[#This Row],[FAKTISKI]]","v":{"v":0,"d":"0.00 €"}},{"$f":"IFERROR(tabula_darbības_izdevumi[[#This Row],[STARPĪBA (summa)]]/tabula_darbības_izdevumi[[#This Row],[BUDŽETS]],\"\")","v":""}]
[null,{"$f":"IFERROR(tabula_darbības_izdevumi[[#This Row],[FAKTISKI]]/tabula_darbības_izdevumi[[#This Row],[BUDŽETS]],\"\")","v":""},"Nodokļi",null,null,{"$f":"tabula_darbības_izdevumi[[#This Row],[BUDŽETS]]-tabula_darbības_izdevumi[[#This Row],[FAKTISKI]]","v":{"v":0,"d":"0.00 €"}},{"$f":"IFERROR(tabula_darbības_izdevumi[[#This Row],[STARPĪBA (summa)]]/tabula_darbības_izdevumi[[#This Row],[BUDŽETS]],\"\")","v":""}]
[null,{"$f":"IFERROR(tabula_darbības_izdevumi[[#This Row],[FAKTISKI]]/tabula_darbības_izdevumi[[#This Row],[BUDŽETS]],\"\")","v":""},"Komunālie pakalpojumi",null,null,{"$f":"tabula_darbības_izdevumi[[#This Row],[BUDŽETS]]-tabula_darbības_izdevumi[[#This Row],[FAKTISKI]]","v":{"v":0,"d":"0.00 €"}},{"$f":"IFERROR(tabula_darbības_izdevumi[[#This Row],[STARPĪBA (summa)]]/tabula_darbības_izdevumi[[#This Row],[BUDŽETS]],\"\")","v":""}]
[null,{"$f":"IFERROR(tabula_darbības_izdevumi[[#This Row],[FAKTISKI]]/tabula_darbības_izdevumi[[#This Row],[BUDŽETS]],\"\")","v":""},"Citi",null,null,{"$f":"tabula_darbības_izdevumi[[#This Row],[BUDŽETS]]-tabula_darbības_izdevumi[[#This Row],[FAKTISKI]]","v":{"v":0,"d":"0.00 €"}},{"$f":"IFERROR(tabula_darbības_izdevumi[[#This Row],[STARPĪBA (summa)]]/tabula_darbības_izdevumi[[#This Row],[BUDŽETS]],\"\")","v":""}]
[null,{"$f":"IFERROR(tabula_darbības_izdevumi[[#This Row],[FAKTISKI]]/tabula_darbības_izdevumi[[#This Row],[BUDŽETS]],\"\")","v":""},"Apdrošināšana",null,null,{"$f":"tabula_darbības_izdevumi[[#This Row],[BUDŽETS]]-tabula_darbības_izdevumi[[#This Row],[FAKTISKI]]","v":{"v":0,"d":"0.00 €"}},{"$f":"IFERROR(tabula_darbības_izdevumi[[#This Row],[STARPĪBA (summa)]]/tabula_darbības_izdevumi[[#This Row],[BUDŽETS]],\"\")","v":""}]
[null,{"$f":"IFERROR(tabula_darbības_izdevumi[[#This Row],[FAKTISKI]]/tabula_darbības_izdevumi[[#This Row],[BUDŽETS]],\"\")","v":""},"Procenti",null,null,{"$f":"tabula_darbības_izdevumi[[#This Row],[BUDŽETS]]-tabula_darbības_izdevumi[[#This Row],[FAKTISKI]]","v":{"v":0,"d":"0.00 €"}},{"$f":"IFERROR(tabula_darbības_izdevumi[[#This Row],[STARPĪBA (summa)]]/tabula_darbības_izdevumi[[#This Row],[BUDŽETS]],\"\")","v":""}]
[null,{"$f":"IFERROR(tabula_darbības_izdevumi[[#This Row],[FAKTISKI]]/tabula_darbības_izdevumi[[#This Row],[BUDŽETS]],\"\")","v":""},"Tālrunis",null,null,{"$f":"tabula_darbības_izdevumi[[#This Row],[BUDŽETS]]-tabula_darbības_izdevumi[[#This Row],[FAKTISKI]]","v":{"v":0,"d":"0.00 €"}},{"$f":"IFERROR(tabula_darbības_izdevumi[[#This Row],[STARPĪBA (summa)]]/tabula_darbības_izdevumi[[#This Row],[BUDŽETS]],\"\")","v":""}]
[null,{"$f":"IFERROR(tabula_darbības_izdevumi[[#This Row],[FAKTISKI]]/tabula_darbības_izdevumi[[#This Row],[BUDŽETS]],\"\")","v":""},"Tehniskā apkope un remonts",null,null,{"$f":"tabula_darbības_izdevumi[[#This Row],[BUDŽETS]]-tabula_darbības_izdevumi[[#This Row],[FAKTISKI]]","v":{"v":0,"d":"0.00 €"}},{"$f":"IFERROR(tabula_darbības_izdevumi[[#This Row],[STARPĪBA (summa)]]/tabula_darbības_izdevumi[[#This Row],[BUDŽETS]],\"\")","v":""}]
[null,{"$f":"IFERROR(tabula_darbības_izdevumi[[#This Row],[FAKTISKI]]/tabula_darbības_izdevumi[[#This Row],[BUDŽETS]],\"\")","v":""},"Juridiskie izdevumi",null,null,{"$f":"tabula_darbības_izdevumi[[#This Row],[BUDŽETS]]-tabula_darbības_izdevumi[[#This Row],[FAKTISKI]]","v":{"v":0,"d":"0.00 €"}},{"$f":"IFERROR(tabula_darbības_izdevumi[[#This Row],[STARPĪBA (summa)]]/tabula_darbības_izdevumi[[#This Row],[BUDŽETS]],\"\")","v":""}]
[null,{"$f":"IFERROR(tabula_darbības_izdevumi[[#This Row],[FAKTISKI]]/tabula_darbības_izdevumi[[#This Row],[BUDŽETS]],\"\")","v":""},"Nolietojums",null,null,{"$f":"tabula_darbības_izdevumi[[#This Row],[BUDŽETS]]-tabula_darbības_izdevumi[[#This Row],[FAKTISKI]]","v":{"v":0,"d":"0.00 €"}},{"$f":"IFERROR(tabula_darbības_izdevumi[[#This Row],[STARPĪBA (summa)]]/tabula_darbības_izdevumi[[#This Row],[BUDŽETS]],\"\")","v":""}]
[null,{"$f":"IFERROR(tabula_darbības_izdevumi[[#This Row],[FAKTISKI]]/tabula_darbības_izdevumi[[#This Row],[BUDŽETS]],\"\")","v":""},"Transporta pakalpojumi",null,null,{"$f":"tabula_darbības_izdevumi[[#This Row],[BUDŽETS]]-tabula_darbības_izdevumi[[#This Row],[FAKTISKI]]","v":{"v":0,"d":"0.00 €"}},{"$f":"IFERROR(tabula_darbības_izdevumi[[#This Row],[STARPĪBA (summa)]]/tabula_darbības_izdevumi[[#This Row],[BUDŽETS]],\"\")","v":""}]
[null,{"$f":"IFERROR(tabula_darbības_izdevumi[[#This Row],[FAKTISKI]]/tabula_darbības_izdevumi[[#This Row],[BUDŽETS]],\"\")","v":""},"Uzglabāšana",null,null,{"$f":"tabula_darbības_izdevumi[[#This Row],[BUDŽETS]]-tabula_darbības_izdevumi[[#This Row],[FAKTISKI]]","v":{"v":0,"d":"0.00 €"}},{"$f":"IFERROR(tabula_darbības_izdevumi[[#This Row],[STARPĪBA (summa)]]/tabula_darbības_izdevumi[[#This Row],[BUDŽETS]],\"\")","v":""}]
[null,{"$f":"IFERROR(tabula_darbības_izdevumi[[#This Row],[FAKTISKI]]/tabula_darbības_izdevumi[[#This Row],[BUDŽETS]],\"\")","v":""},"Citi",null,null,{"$f":"tabula_darbības_izdevumi[[#This Row],[BUDŽETS]]-tabula_darbības_izdevumi[[#This Row],[FAKTISKI]]","v":{"v":0,"d":"0.00 €"}},{"$f":"IFERROR(tabula_darbības_izdevumi[[#This Row],[STARPĪBA (summa)]]/tabula_darbības_izdevumi[[#This Row],[BUDŽETS]],\"\")","v":""}]
[null,null,"Kopējie izdevumi",{"$f":"SUBTOTAL(109,tabula_darbības_izdevumi[BUDŽETS],tabula_personāla_izdevumi[BUDŽETS])","v":{"v":1400,"d":"1,400.00 €"}},{"$f":"SUBTOTAL(109,tabula_darbības_izdevumi[FAKTISKI],tabula_personāla_izdevumi[FAKTISKI])","v":{"v":1490,"d":"1,490.00 €"}},{"$f":"SUBTOTAL(109,tabula_darbības_izdevumi[STARPĪBA (summa)],tabula_personāla_izdevumi[STARPĪBA (summa)])","v":{"v":-90,"d":"-90.00 €"}},{"$f":"IFERROR(SUM(tabula_darbības_izdevumi[[#Totals],[STARPĪBA (summa)]]/tabula_darbības_izdevumi[[#Totals],[BUDŽETS]]),\"\")","v":{"v":-0.06428571428571428,"d":"-6%"}}]